[Event "Late-Titled-Tuesday-Blitz-March-26-2024"]
[Site "Chess.com"]
[Date "2024.03.26"]
[Round "7"]
[White "WindWhistler11"]
[Black "jinbojinbo"]
[Result "0-1"]
[WhiteElo "2463"]
[BlackElo "2647"]
[TimeControl "180+1"]
[EndTime "15:17:21 PDT"]
[Termination "jinbojinbo won by resignation"]

1. Nf3 {[%clk 0:03:00.8]} 1... Nf6 {[%clk 0:02:59.5]} 2. g3 {[%clk 0:03:00.7]}
2... d5 {[%clk 0:02:58.8]} 3. Bg2 {[%clk 0:03:00.3]} 3... Bf5 {[%clk 0:02:58.4]}
4. c4 {[%clk 0:02:58.4]} 4... e6 {[%clk 0:02:56.8]} 5. d3 {[%clk 0:02:55.6]}
5... h6 {[%clk 0:02:55.8]} 6. Qb3 {[%clk 0:02:48.3]} 6... b6 {[%clk 0:02:48.8]}
7. cxd5 {[%clk 0:02:45.9]} 7... exd5 {[%clk 0:02:48.4]} 8. Nc3 {[%clk
0:02:45.6]} 8... c6 {[%clk 0:02:37.3]} 9. Bf4 {[%clk 0:02:32.8]} 9... Be7 {[%clk
0:02:34]} 10. O-O {[%clk 0:02:31.2]} 10... O-O {[%clk 0:02:32.7]} 11. Rfe1
{[%clk 0:02:31.6]} 11... Bh7 {[%clk 0:02:25.5]} 12. e4 {[%clk 0:02:30.2]} 12...
d4 {[%clk 0:02:21.5]} 13. Nb1 {[%clk 0:02:25.6]} 13... Na6 {[%clk 0:02:06.1]}
14. Ne5 {[%clk 0:02:17.3]} 14... Nc5 {[%clk 0:01:55.6]} 15. Qc2 {[%clk 0:02:16]}
15... Rc8 {[%clk 0:01:50.6]} 16. Bh3 {[%clk 0:02:14.7]} 16... Ne6 {[%clk
0:01:44.3]} 17. Bxe6 {[%clk 0:02:05]} 17... fxe6 {[%clk 0:01:45.2]} 18. Qb3
{[%clk 0:02:05]} 18... Kh8 {[%clk 0:01:19.7]} 19. Qxe6 {[%clk 0:02:01.7]} 19...
Qe8 {[%clk 0:01:19.3]} 20. Qb3 {[%clk 0:01:25.3]} 20... g5 {[%clk 0:01:11]} 21.
Bd2 {[%clk 0:01:18.4]} 21... Bd6 {[%clk 0:01:08.4]} 22. Nc4 {[%clk 0:01:16.4]}
22... Bb8 {[%clk 0:01:05.2]} 23. e5 {[%clk 0:01:00]} 23... Ng4 {[%clk
0:01:02.9]} 24. f4 {[%clk 0:00:55.6]} 24... Qh5 {[%clk 0:00:58.5]} 25. Re2
{[%clk 0:00:51]} 25... gxf4 {[%clk 0:00:47.2]} 26. Bxf4 {[%clk 0:00:50.4]} 26...
Ne3 {[%clk 0:00:34.6]} 27. Rxe3 {[%clk 0:00:42.9]} 27... dxe3 {[%clk 0:00:32.7]}
28. Nxe3 {[%clk 0:00:43.8]} 28... Rxf4 {[%clk 0:00:27.3]} 29. gxf4 {[%clk
0:00:35.7]} 29... Rg8+ {[%clk 0:00:26.4]} 30. Ng2 {[%clk 0:00:35.7]} 30... Qe2
{[%clk 0:00:25.1]} 0-1

[Event "Late-Titled-Tuesday-Blitz-March-26-2024"]
[Site "Chess.com"]
[Date "2024.03.26"]
[Round "7"]
[White "rikchessmx"]
[Black "Laico"]
[Result "0-1"]
[WhiteElo "2289"]
[BlackElo "2412"]
[TimeControl "180+1"]
[EndTime "15:17:40 PDT"]
[Termination "Laico won on time"]

1. e4 {[%clk 0:02:13.5]} 1... e6 {[%clk 0:02:52]} 2. d4 {[%clk 0:02:12.7]} 2...
d5 {[%clk 0:02:52.2]} 3. Nc3 {[%clk 0:02:13.6]} 3... Nf6 {[%clk 0:02:51.4]} 4.
Bg5 {[%clk 0:02:12.5]} 4... Be7 {[%clk 0:02:51.5]} 5. e5 {[%clk 0:02:12.6]} 5...
Nfd7 {[%clk 0:02:52.3]} 6. h4 {[%clk 0:02:11]} 6... O-O {[%clk 0:02:52.3]} 7.
Qg4 {[%clk 0:02:10.5]} 7... Kh8 {[%clk 0:02:51.6]} 8. Nf3 {[%clk 0:02:06.2]}
8... c5 {[%clk 0:02:51.7]} 9. dxc5 {[%clk 0:02:04.2]} 9... Nc6 {[%clk
0:02:51.2]} 10. Bxe7 {[%clk 0:02:03.1]} 10... Qxe7 {[%clk 0:02:51]} 11. Qg3
{[%clk 0:01:58.1]} 11... Nxc5 {[%clk 0:02:41.7]} 12. O-O-O {[%clk 0:01:57.8]}
12... a6 {[%clk 0:02:37.9]} 13. Bd3 {[%clk 0:01:56.6]} 13... b5 {[%clk
0:02:37.5]} 14. Ng5 {[%clk 0:01:47.4]} 14... h6 {[%clk 0:02:36.8]} 15. Nh7
{[%clk 0:01:46]} 15... Nxd3+ {[%clk 0:02:19.1]} 16. Qxd3 {[%clk 0:01:36.2]}
16... Nb4 {[%clk 0:02:18.2]} 17. Qd4 {[%clk 0:01:34.7]} 17... Kxh7 {[%clk
0:02:17.4]} 18. g4 {[%clk 0:01:34.5]} 18... Nc6 {[%clk 0:02:13.6]} 19. Qf4
{[%clk 0:01:34]} 19... f6 {[%clk 0:02:09.4]} 20. g5 {[%clk 0:01:32.8]} 20...
fxe5 {[%clk 0:02:09.4]} 21. Qg4 {[%clk 0:01:32]} 21... Rf4 {[%clk 0:02:03.8]}
22. Qg3 {[%clk 0:01:31.4]} 22... Nd4 {[%clk 0:01:57]} 23. Rdg1 {[%clk
0:01:20.8]} 23... h5 {[%clk 0:01:46.7]} 24. a3 {[%clk 0:01:16.8]} 24... a5
{[%clk 0:01:39.3]} 25. Qd3+ {[%clk 0:01:10.4]} 25... Kg8 {[%clk 0:01:34.4]} 26.
Qd1 {[%clk 0:01:08.3]} 26... b4 {[%clk 0:01:31]} 27. Qxh5 {[%clk 0:01:05.5]}
27... bxc3 {[%clk 0:01:08.8]} 28. g6 {[%clk 0:01:04.4]} 28... Qf6 {[%clk
0:01:07.3]} 29. Rg5 {[%clk 0:00:23]} 29... cxb2+ {[%clk 0:01:03.8]} 30. Kb1
{[%clk 0:00:22.6]} 30... Nb5 {[%clk 0:00:56.8]} 31. Rxe5 {[%clk 0:00:19.4]}
31... Rb8 {[%clk 0:00:53.9]} 32. Rh3 {[%clk 0:00:14.8]} 32... Rxf2 {[%clk
0:00:49.4]} 33. Kxb2 {[%clk 0:00:10.7]} 33... Nd4+ {[%clk 0:00:43.4]} 34. Kc3
{[%clk 0:00:10.4]} 34... Nf5 {[%clk 0:00:39.8]} 0-1

[Event "Late-Titled-Tuesday-Blitz-March-26-2024"]
[Site "Chess.com"]
[Date "2024.03.26"]
[Round "7"]
[White "AccioChess"]
[Black "N_I_Chess"]
[Result "0-1"]
[WhiteElo "2495"]
[BlackElo "2339"]
[TimeControl "180+1"]
[EndTime "15:17:42 PDT"]
[Termination "N_I_Chess won by resignation"]

1. e4 {[%clk 0:03:00.9]} 1... Nf6 {[%clk 0:03:00.5]} 2. e5 {[%clk 0:03:00.6]}
2... Nd5 {[%clk 0:02:57.8]} 3. d4 {[%clk 0:03:00.8]} 3... d6 {[%clk 0:02:58]} 4.
c4 {[%clk 0:03:01.1]} 4... Nb6 {[%clk 0:02:58.1]} 5. exd6 {[%clk 0:03:01.5]}
5... cxd6 {[%clk 0:02:58.8]} 6. Nc3 {[%clk 0:03:01.8]} 6... g6 {[%clk 0:02:58]}
7. Be3 {[%clk 0:03:01.3]} 7... Bg7 {[%clk 0:02:58.5]} 8. Rc1 {[%clk 0:03:01.3]}
8... O-O {[%clk 0:02:59.2]} 9. b3 {[%clk 0:03:01.7]} 9... Bf5 {[%clk 0:02:58.9]}
10. Nf3 {[%clk 0:02:59.4]} 10... d5 {[%clk 0:02:58.2]} 11. c5 {[%clk 0:02:58.4]}
11... Nc8 {[%clk 0:02:58.2]} 12. Be2 {[%clk 0:02:57.1]} 12... Nc6 {[%clk
0:02:58.1]} 13. O-O {[%clk 0:02:57.1]} 13... Bg4 {[%clk 0:02:56]} 14. h3 {[%clk
0:02:50]} 14... Bxf3 {[%clk 0:02:55.7]} 15. Bxf3 {[%clk 0:02:50.9]} 15... e6
{[%clk 0:02:56.6]} 16. a3 {[%clk 0:02:49.4]} 16... N8e7 {[%clk 0:02:56]} 17. b4
{[%clk 0:02:48.9]} 17... a6 {[%clk 0:02:56.7]} 18. g4 {[%clk 0:02:46.7]} 18...
f5 {[%clk 0:02:55.8]} 19. Ne2 {[%clk 0:02:36.6]} 19... fxg4 {[%clk 0:02:52.6]}
20. Bxg4 {[%clk 0:02:37.5]} 20... Nf5 {[%clk 0:02:51.9]} 21. Bxf5 {[%clk
0:02:24.6]} 21... Rxf5 {[%clk 0:02:47]} 22. Ng3 {[%clk 0:02:24.7]} 22... Rf7
{[%clk 0:02:43.3]} 23. Qg4 {[%clk 0:02:24.2]} 23... Qf6 {[%clk 0:02:35.1]} 24.
Ne2 {[%clk 0:02:16.7]} 24... e5 {[%clk 0:02:25.7]} 25. Rcd1 {[%clk 0:02:07.3]}
25... Re8 {[%clk 0:02:07.6]} 26. Qg2 {[%clk 0:01:45.5]} 26... e4 {[%clk
0:02:01.7]} 27. Nf4 {[%clk 0:01:41.6]} 27... Qf5 {[%clk 0:01:57.6]} 28. f3
{[%clk 0:01:33.4]} 28... Bh6 {[%clk 0:01:52.5]} 29. Nxd5 {[%clk 0:01:23.7]}
29... exf3 {[%clk 0:01:23.7]} 30. Rxf3 {[%clk 0:01:23.4]} 30... Qxd5 {[%clk
0:01:09.1]} 31. Rxf7 {[%clk 0:01:17]} 31... Bxe3+ {[%clk 0:01:06.4]} 32. Rf2
{[%clk 0:01:13.9]} 32... Qxg2+ {[%clk 0:01:03.9]} 33. Kxg2 {[%clk 0:01:13.8]}
33... Bxf2 {[%clk 0:01:02.9]} 34. Kxf2 {[%clk 0:01:14.7]} 34... Kf7 {[%clk
0:00:51.6]} 35. d5 {[%clk 0:01:14.5]} 35... Ne5 {[%clk 0:00:52.2]} 36. d6 {[%clk
0:01:11.9]} 36... Ke6 {[%clk 0:00:51.3]} 37. Ke3 {[%clk 0:01:11.4]} 37... Rf8
{[%clk 0:00:51]} 38. Rd4 {[%clk 0:00:59.6]} 38... Rf3+ {[%clk 0:00:49.1]} 39.
Ke4 {[%clk 0:00:57.7]} 39... Rxh3 {[%clk 0:00:46.6]} 40. Rd1 {[%clk 0:00:51.7]}
40... Rxa3 {[%clk 0:00:41.4]} 41. Rh1 {[%clk 0:00:46.6]} 41... h5 {[%clk
0:00:40]} 42. Rg1 {[%clk 0:00:46.8]} 42... Rb3 {[%clk 0:00:36.3]} 43. Rg5 {[%clk
0:00:42.9]} 43... Rxb4+ {[%clk 0:00:35.5]} 44. Ke3 {[%clk 0:00:43.2]} 44... Rg4
{[%clk 0:00:30.6]} 0-1

[Event "Late-Titled-Tuesday-Blitz-March-26-2024"]
[Site "Chess.com"]
[Date "2024.03.26"]
[Round "7"]
[White "vladislavkovalev"]
[Black "Msb2"]
[Result "0-1"]
[WhiteElo "2881"]
[BlackElo "3035"]
[TimeControl "180+1"]
[EndTime "15:17:45 PDT"]
[Termination "Msb2 won on time"]

1. e4 {[%clk 0:03:00.9]} 1... e6 {[%clk 0:03:00.2]} 2. d4 {[%clk 0:03:01]} 2...
d5 {[%clk 0:03:01]} 3. exd5 {[%clk 0:03:01.3]} 3... exd5 {[%clk 0:03:01.9]} 4.
Nf3 {[%clk 0:03:01.9]} 4... Nc6 {[%clk 0:03:02.5]} 5. Bd3 {[%clk 0:02:56.7]}
5... Nb4 {[%clk 0:03:02.7]} 6. O-O {[%clk 0:02:54.7]} 6... Nxd3 {[%clk 0:03:03]}
7. Qxd3 {[%clk 0:02:55.1]} 7... Bd6 {[%clk 0:03:03.4]} 8. Nc3 {[%clk 0:02:53.2]}
8... c6 {[%clk 0:03:03.8]} 9. Ne2 {[%clk 0:02:50.2]} 9... Qc7 {[%clk 0:02:58]}
10. Ng3 {[%clk 0:02:45.5]} 10... Ne7 {[%clk 0:02:58.3]} 11. b3 {[%clk
0:02:37.3]} 11... O-O {[%clk 0:02:53.2]} 12. c4 {[%clk 0:02:37.5]} 12... dxc4
{[%clk 0:02:43.9]} 13. bxc4 {[%clk 0:02:38.4]} 13... Ng6 {[%clk 0:02:40.1]} 14.
Re1 {[%clk 0:02:19.2]} 14... Bg4 {[%clk 0:02:26.5]} 15. h3 {[%clk 0:01:53.6]}
15... Be6 {[%clk 0:02:06.1]} 16. Nf5 {[%clk 0:01:40]} 16... Bb4 {[%clk
0:01:49.3]} 17. Bd2 {[%clk 0:01:07.8]} 17... Bxd2 {[%clk 0:01:40.6]} 18. Nxd2
{[%clk 0:01:08.7]} 18... Rad8 {[%clk 0:01:36.9]} 19. Nf3 {[%clk 0:01:07.1]}
19... Nf4 {[%clk 0:01:32.5]} 20. Qc2 {[%clk 0:00:58]} 20... h6 {[%clk 0:01:28]}
21. Re3 {[%clk 0:00:53.8]} 21... Qd7 {[%clk 0:01:18.8]} 22. Ng3 {[%clk
0:00:39.4]} 22... Bxh3 {[%clk 0:00:52.2]} 23. gxh3 {[%clk 0:00:29.7]} 23... Qxh3
{[%clk 0:00:53.1]} 24. Ne1 {[%clk 0:00:27.2]} 24... Rxd4 {[%clk 0:00:53.6]} 25.
Rd1 {[%clk 0:00:17.4]} 25... Rxd1 {[%clk 0:00:31.6]} 26. Qxd1 {[%clk 0:00:18.3]}
26... Qh4 {[%clk 0:00:32.1]} 27. Qf3 {[%clk 0:00:14.6]} 27... Nh3+ {[%clk
0:00:28.9]} 28. Kg2 {[%clk 0:00:12]} 28... Ng5 {[%clk 0:00:29.5]} 29. Qe2 {[%clk
0:00:05.4]} 29... Ne6 {[%clk 0:00:23.9]} 0-1

[Event "Late-Titled-Tuesday-Blitz-March-26-2024"]
[Site "Chess.com"]
[Date "2024.03.26"]
[Round "7"]
[White "prochn"]
[Black "reevecanada"]
[Result "1-0"]
[WhiteElo "2521"]
[BlackElo "2660"]
[TimeControl "180+1"]
[EndTime "15:17:45 PDT"]
[Termination "prochn won by resignation"]

1. d4 {[%clk 0:03:00.9]} 1... Nf6 {[%clk 0:02:57.4]} 2. c4 {[%clk 0:03:00.5]}
2... c5 {[%clk 0:02:53.5]} 3. d5 {[%clk 0:03:00.2]} 3... g6 {[%clk 0:02:52.7]}
4. g3 {[%clk 0:02:59.5]} 4... Bg7 {[%clk 0:02:52.2]} 5. Bg2 {[%clk 0:02:59.8]}
5... O-O {[%clk 0:02:51.5]} 6. Nf3 {[%clk 0:03:00.2]} 6... d6 {[%clk 0:02:51.9]}
7. O-O {[%clk 0:02:59]} 7... a6 {[%clk 0:02:52.5]} 8. Nc3 {[%clk 0:02:58.9]}
8... Nbd7 {[%clk 0:02:51.6]} 9. e4 {[%clk 0:02:55.4]} 9... b5 {[%clk 0:02:51]}
10. cxb5 {[%clk 0:02:55]} 10... axb5 {[%clk 0:02:49.6]} 11. Re1 {[%clk
0:02:43.3]} 11... b4 {[%clk 0:02:46.9]} 12. Nb1 {[%clk 0:02:42.4]} 12... Ba6
{[%clk 0:02:44.7]} 13. Nbd2 {[%clk 0:02:38]} 13... Ne8 {[%clk 0:02:41]} 14. Qc2
{[%clk 0:02:29.1]} 14... Nc7 {[%clk 0:02:34.5]} 15. Rb1 {[%clk 0:02:17.4]} 15...
Bb5 {[%clk 0:02:29.5]} 16. b3 {[%clk 0:02:13]} 16... Nb6 {[%clk 0:02:27.8]} 17.
Nc4 {[%clk 0:02:05.1]} 17... Nxc4 {[%clk 0:02:24.3]} 18. bxc4 {[%clk 0:02:04.7]}
18... Ba4 {[%clk 0:02:22.4]} 19. Qd3 {[%clk 0:02:02.6]} 19... Qc8 {[%clk
0:02:13.5]} 20. Bb2 {[%clk 0:01:59.4]} 20... Bd7 {[%clk 0:02:04.8]} 21. Bxg7
{[%clk 0:01:57.7]} 21... Kxg7 {[%clk 0:02:05.7]} 22. Rb2 {[%clk 0:01:56.3]}
22... f6 {[%clk 0:02:03.8]} 23. Nd2 {[%clk 0:01:51.7]} 23... Ra3 {[%clk
0:01:57.1]} 24. Qb1 {[%clk 0:01:48.6]} 24... Qa6 {[%clk 0:01:53.3]} 25. f4
{[%clk 0:01:43]} 25... Ra8 {[%clk 0:01:49.7]} 26. e5 {[%clk 0:01:43.3]} 26...
Rxa2 {[%clk 0:01:38.7]} 27. exd6 {[%clk 0:01:41.3]} 27... Bf5 {[%clk 0:01:13.9]}
28. Qxa2 {[%clk 0:01:33.8]} 28... Qxa2 {[%clk 0:01:11.9]} 29. Rxa2 {[%clk
0:01:34.1]} 29... Rxa2 {[%clk 0:01:12.1]} 30. dxc7 {[%clk 0:01:33.8]} 30... Rxd2
{[%clk 0:01:11.1]} 31. Rxe7+ {[%clk 0:01:29.5]} 31... Kf8 {[%clk 0:01:05.1]} 32.
Rxh7 {[%clk 0:01:29.6]} 32... b3 {[%clk 0:01:02.3]} 33. Be4 {[%clk 0:01:27]}
33... Kg8 {[%clk 0:00:28.5]} 34. Bxf5 {[%clk 0:01:03.8]} 34... Kxh7 {[%clk
0:00:22.5]} 35. c8=Q {[%clk 0:00:56.1]} 35... gxf5 {[%clk 0:00:20.4]} 36. Qb7+
{[%clk 0:00:56.2]} 36... Kg6 {[%clk 0:00:19.9]} 37. Qxb3 {[%clk 0:00:56.4]}
37... Kh5 {[%clk 0:00:18.7]} 38. Qf3+ {[%clk 0:00:55.9]} 38... Kg6 {[%clk
0:00:17.9]} 39. Qe3 {[%clk 0:00:56]} 39... Rd4 {[%clk 0:00:17.2]} 40. Qe8+
{[%clk 0:00:55.4]} 40... Kg7 {[%clk 0:00:16.2]} 41. d6 {[%clk 0:00:55]} 41...
Rd1+ {[%clk 0:00:14]} 42. Kf2 {[%clk 0:00:54.8]} 42... Rd2+ {[%clk 0:00:14.3]}
43. Ke1 {[%clk 0:00:54.2]} 43... Rd4 {[%clk 0:00:14.3]} 44. d7 {[%clk
0:00:53.6]} 44... Rxc4 {[%clk 0:00:14.5]} 45. d8=Q {[%clk 0:00:53.3]} 45... Re4+
{[%clk 0:00:15.4]} 46. Qxe4 {[%clk 0:00:53]} 46... fxe4 {[%clk 0:00:16.3]} 47.
Qe7+ {[%clk 0:00:53.2]} 1-0

[Event "Late-Titled-Tuesday-Blitz-March-26-2024"]
[Site "Chess.com"]
[Date "2024.03.26"]
[Round "7"]
[White "eljanov"]
[Black "Koalaskakistis"]
[Result "1/2-1/2"]
[WhiteElo "2908"]
[BlackElo "2507"]
[TimeControl "180+1"]
[EndTime "15:17:46 PDT"]
[Termination "Game drawn - insufficient material"]

1. d4 {[%clk 0:03:00.9]} 1... f5 {[%clk 0:03:00]} 2. Bg5 {[%clk 0:02:59]} 2...
h6 {[%clk 0:02:59.3]} 3. Bh4 {[%clk 0:02:58.7]} 3... g5 {[%clk 0:03:00]} 4. e3
{[%clk 0:02:56.6]} 4... Nf6 {[%clk 0:02:58.1]} 5. Bg3 {[%clk 0:02:56.9]} 5... d6
{[%clk 0:02:58.1]} 6. Nc3 {[%clk 0:02:55.9]} 6... e6 {[%clk 0:02:56.6]} 7. h4
{[%clk 0:02:55.2]} 7... Rg8 {[%clk 0:02:56.5]} 8. Bc4 {[%clk 0:02:54.1]} 8...
Qe7 {[%clk 0:02:49.4]} 9. Nf3 {[%clk 0:02:52]} 9... Nbd7 {[%clk 0:02:38.4]} 10.
hxg5 {[%clk 0:02:49]} 10... hxg5 {[%clk 0:02:38.3]} 11. Qe2 {[%clk 0:02:46]}
11... Nb6 {[%clk 0:02:37]} 12. Bb3 {[%clk 0:02:42.5]} 12... Bd7 {[%clk
0:02:31.8]} 13. a4 {[%clk 0:02:37.1]} 13... a6 {[%clk 0:02:23.4]} 14. a5 {[%clk
0:02:34.9]} 14... Nbd5 {[%clk 0:02:22.7]} 15. Nxd5 {[%clk 0:02:34.7]} 15... exd5
{[%clk 0:02:23.6]} 16. c4 {[%clk 0:02:09.2]} 16... Ne4 {[%clk 0:02:14.8]} 17.
cxd5 {[%clk 0:02:09.2]} 17... Bb5 {[%clk 0:02:10.7]} 18. Bc4 {[%clk 0:02:01.7]}
18... Bxc4 {[%clk 0:02:07.4]} 19. Qxc4 {[%clk 0:02:02.6]} 19... f4 {[%clk
0:01:45.4]} 20. Bh2 {[%clk 0:02:02.8]} 20... g4 {[%clk 0:01:45.8]} 21. Bxf4
{[%clk 0:01:58.3]} 21... gxf3 {[%clk 0:01:45]} 22. gxf3 {[%clk 0:01:58.6]} 22...
Ng5 {[%clk 0:01:36.8]} 23. Bxg5 {[%clk 0:01:47.2]} 23... Rxg5 {[%clk 0:01:31.4]}
24. b4 {[%clk 0:01:45.4]} 24... Qf7 {[%clk 0:01:23.2]} 25. Ke2 {[%clk 0:01:41]}
25... Rxd5 {[%clk 0:00:41.6]} 26. Rac1 {[%clk 0:01:34.7]} 26... Rf5 {[%clk
0:00:28.5]} 27. Qxc7 {[%clk 0:01:29.5]} 27... Rxf3 {[%clk 0:00:28.9]} 28. Qxf7+
{[%clk 0:01:24.2]} 28... Rxf7 {[%clk 0:00:29.8]} 29. f4 {[%clk 0:01:17.6]} 29...
d5 {[%clk 0:00:28.8]} 30. Rb1 {[%clk 0:01:15.3]} 30... Rc8 {[%clk 0:00:27.4]}
31. b5 {[%clk 0:01:15.3]} 31... Re7 {[%clk 0:00:19.5]} 32. bxa6 {[%clk
0:01:07.3]} 32... bxa6 {[%clk 0:00:20]} 33. Rh5 {[%clk 0:01:06.5]} 33... Rc3
{[%clk 0:00:20.1]} 34. Re5 {[%clk 0:01:06.1]} 34... Rxe5 {[%clk 0:00:17.9]} 35.
fxe5 {[%clk 0:00:59.2]} 35... Bh6 {[%clk 0:00:18.1]} 36. Rb8+ {[%clk 0:00:52.1]}
36... Ke7 {[%clk 0:00:16.2]} 37. Rb7+ {[%clk 0:00:51.8]} 37... Ke8 {[%clk
0:00:16.7]} 38. Rb8+ {[%clk 0:00:51.6]} 38... Kd7 {[%clk 0:00:16.7]} 39. Rb6
{[%clk 0:00:51.6]} 39... Bxe3 {[%clk 0:00:12.7]} 40. Rxa6 {[%clk 0:00:50.4]}
40... Bxd4 {[%clk 0:00:12]} 41. Rd6+ {[%clk 0:00:50.5]} 41... Ke7 {[%clk
0:00:12]} 42. Rxd5 {[%clk 0:00:50.7]} 42... Re3+ {[%clk 0:00:09.4]} 43. Kd2
{[%clk 0:00:50.1]} 43... Rxe5 {[%clk 0:00:09.7]} 44. Rxd4 {[%clk 0:00:50.2]}
44... Rxa5 {[%clk 0:00:10.2]} 45. Rd3 {[%clk 0:00:50.5]} 45... Ra6 {[%clk
0:00:10.3]} 46. Re3+ {[%clk 0:00:50.4]} 46... Re6 {[%clk 0:00:11]} 47. Rxe6+
{[%clk 0:00:51]} 47... Kxe6 {[%clk 0:00:11.9]} 1/2-1/2

[Event "Late-Titled-Tuesday-Blitz-March-26-2024"]
[Site "Chess.com"]
[Date "2024.03.26"]
[Round "7"]
[White "MyDream003"]
[Black "nabukatnezarr"]
[Result "1-0"]
[WhiteElo "2794"]
[BlackElo "2603"]
[TimeControl "180+1"]
[EndTime "15:17:54 PDT"]
[Termination "MyDream003 won on time"]

1. e4 {[%clk 0:03:00.5]} 1... e5 {[%clk 0:02:58.2]} 2. Nf3 {[%clk 0:03:00.7]}
2... Nc6 {[%clk 0:02:58.3]} 3. Bc4 {[%clk 0:03:01.3]} 3... Nf6 {[%clk
0:02:58.3]} 4. d3 {[%clk 0:03:01.5]} 4... Bc5 {[%clk 0:02:57.7]} 5. c3 {[%clk
0:03:01.9]} 5... d6 {[%clk 0:02:57.6]} 6. h3 {[%clk 0:03:01.7]} 6... a6 {[%clk
0:02:57.9]} 7. a4 {[%clk 0:03:01.7]} 7... Ba7 {[%clk 0:02:57.7]} 8. Bg5 {[%clk
0:02:57.4]} 8... h6 {[%clk 0:02:58.1]} 9. Bh4 {[%clk 0:02:57.7]} 9... Qe7 {[%clk
0:02:49.9]} 10. Nbd2 {[%clk 0:02:57.5]} 10... g5 {[%clk 0:02:41]} 11. Bg3 {[%clk
0:02:57.8]} 11... Bd7 {[%clk 0:02:31]} 12. b4 {[%clk 0:02:57.2]} 12... a5 {[%clk
0:02:23.4]} 13. b5 {[%clk 0:02:56.1]} 13... Nd8 {[%clk 0:02:23.4]} 14. Qc2
{[%clk 0:02:44.4]} 14... Ne6 {[%clk 0:02:20.6]} 15. Bxe6 {[%clk 0:02:33]} 15...
fxe6 {[%clk 0:01:59]} 16. d4 {[%clk 0:02:30.7]} 16... exd4 {[%clk 0:01:56.1]}
17. cxd4 {[%clk 0:02:31.6]} 17... Rc8 {[%clk 0:01:39]} 18. Qb2 {[%clk
0:02:21.6]} 18... Nh5 {[%clk 0:01:24.5]} 19. Bh2 {[%clk 0:02:21.5]} 19... O-O
{[%clk 0:01:20.5]} 20. O-O {[%clk 0:02:17.5]} 20... Nf4 {[%clk 0:01:15.6]} 21.
Bxf4 {[%clk 0:02:03.7]} 21... Rxf4 {[%clk 0:01:14.1]} 22. Rac1 {[%clk
0:02:04.2]} 22... Qg7 {[%clk 0:00:54.4]} 23. g3 {[%clk 0:01:55.1]} 23... Rf7
{[%clk 0:00:51.2]} 24. e5 {[%clk 0:01:50.6]} 24... d5 {[%clk 0:00:26.8]} 25. Nh2
{[%clk 0:01:49]} 25... Bb6 {[%clk 0:00:25]} 26. Ng4 {[%clk 0:01:42.9]} 26...
Rcf8 {[%clk 0:00:24.4]} 27. Nb3 {[%clk 0:01:32]} 27... h5 {[%clk 0:00:21]} 28.
Nf6+ {[%clk 0:01:32.4]} 28... Rxf6 {[%clk 0:00:21.6]} 29. exf6 {[%clk
0:01:33.3]} 29... Rxf6 {[%clk 0:00:17.7]} 30. Nc5 {[%clk 0:01:33.1]} 30... Bc8
{[%clk 0:00:18.3]} 31. Rfe1 {[%clk 0:01:25.2]} 31... h4 {[%clk 0:00:18]} 32. Kg2
{[%clk 0:01:21.6]} 32... Qf7 {[%clk 0:00:16.7]} 33. Re3 {[%clk 0:01:18.8]} 33...
hxg3 {[%clk 0:00:13.2]} 34. Rxg3 {[%clk 0:01:16.9]} 34... Rg6 {[%clk 0:00:12.4]}
35. Re1 {[%clk 0:01:13]} 35... Qg7 {[%clk 0:00:11.5]} 36. Qd2 {[%clk 0:00:51.1]}
36... e5 {[%clk 0:00:10]} 37. Rxe5 {[%clk 0:00:46.7]} 37... Bxc5 {[%clk
0:00:07.8]} 38. Rexg5 {[%clk 0:00:46.3]} 38... Bf5 {[%clk 0:00:03.3]} 39. dxc5
{[%clk 0:00:43.5]} 39... Be4+ {[%clk 0:00:03]} 40. f3 {[%clk 0:00:43.7]} 1-0

[Event "Late-Titled-Tuesday-Blitz-March-26-2024"]
[Site "Chess.com"]
[Date "2024.03.26"]
[Round "7"]
[White "nindjaxx8"]
[Black "ArchibaldCerveza29"]
[Result "1-0"]
[WhiteElo "2614"]
[BlackElo "2367"]
[TimeControl "180+1"]
[EndTime "15:17:55 PDT"]
[Termination "nindjaxx8 won by resignation"]

1. d4 {[%clk 0:03:00.3]} 1... Nf6 {[%clk 0:02:59.7]} 2. c4 {[%clk 0:02:59.7]}
2... g6 {[%clk 0:03:00]} 3. Nc3 {[%clk 0:02:59.1]} 3... Bg7 {[%clk 0:03:00.5]}
4. Nf3 {[%clk 0:02:56.1]} 4... O-O {[%clk 0:03:00]} 5. Bf4 {[%clk 0:02:54.4]}
5... d6 {[%clk 0:02:49.2]} 6. e3 {[%clk 0:02:53.7]} 6... Nbd7 {[%clk 0:02:42.1]}
7. Be2 {[%clk 0:02:53.7]} 7... b6 {[%clk 0:02:37.5]} 8. O-O {[%clk 0:02:51.8]}
8... Bb7 {[%clk 0:02:35.6]} 9. Qc2 {[%clk 0:02:49.4]} 9... Nh5 {[%clk
0:02:31.4]} 10. Bg3 {[%clk 0:02:43.2]} 10... Nxg3 {[%clk 0:02:27.5]} 11. hxg3
{[%clk 0:02:44.1]} 11... c5 {[%clk 0:02:27.7]} 12. dxc5 {[%clk 0:02:39.9]} 12...
bxc5 {[%clk 0:02:17]} 13. Rad1 {[%clk 0:02:37.8]} 13... Rb8 {[%clk 0:01:57.7]}
14. b3 {[%clk 0:02:36.3]} 14... Qa5 {[%clk 0:01:54.7]} 15. Nd5 {[%clk 0:02:31]}
15... Bxd5 {[%clk 0:01:53.6]} 16. Rxd5 {[%clk 0:02:31.9]} 16... Qc3 {[%clk
0:01:51.2]} 17. Qb1 {[%clk 0:02:28.2]} 17... Qb2 {[%clk 0:01:44.9]} 18. Qxb2
{[%clk 0:02:20.5]} 18... Bxb2 {[%clk 0:01:45.8]} 19. Rd2 {[%clk 0:02:06]} 19...
Bc3 {[%clk 0:01:41.6]} 20. Rd3 {[%clk 0:02:02.2]} 20... Bf6 {[%clk 0:01:40.5]}
21. Rfd1 {[%clk 0:02:02.8]} 21... a5 {[%clk 0:01:36.8]} 22. Nd2 {[%clk
0:02:00.2]} 22... Ne5 {[%clk 0:01:36.2]} 23. Rd5 {[%clk 0:01:59.6]} 23... Bg7
{[%clk 0:01:08.1]} 24. Ne4 {[%clk 0:01:49.8]} 24... a4 {[%clk 0:00:58.8]} 25.
bxa4 {[%clk 0:01:29.6]} 25... Ra8 {[%clk 0:00:50.9]} 26. Nc3 {[%clk 0:01:29]}
26... Nc6 {[%clk 0:00:49.6]} 27. Nb5 {[%clk 0:01:17.4]} 27... Nb4 {[%clk
0:00:39.3]} 28. R5d2 {[%clk 0:01:15.5]} 28... Rxa4 {[%clk 0:00:37.5]} 29. a3
{[%clk 0:01:15.6]} 29... Nc6 {[%clk 0:00:34.7]} 30. f4 {[%clk 0:01:12.3]} 30...
Rfa8 {[%clk 0:00:25.5]} 31. Kf2 {[%clk 0:01:10.9]} 31... Na5 {[%clk 0:00:21.3]}
32. Rc2 {[%clk 0:01:08.8]} 32... Nc6 {[%clk 0:00:21.7]} 33. Bf3 {[%clk
0:01:08.3]} 33... R8a6 {[%clk 0:00:20.5]} 34. Rb1 {[%clk 0:00:54.2]} 34... h6
{[%clk 0:00:17.4]} 35. Nc7 {[%clk 0:00:53.8]} 35... Rxa3 {[%clk 0:00:15.5]} 36.
Nxa6 {[%clk 0:00:52.1]} 36... Rxa6 {[%clk 0:00:16.4]} 37. Bxc6 {[%clk 0:00:51]}
37... Rxc6 {[%clk 0:00:16.4]} 38. Rb7 {[%clk 0:00:51.5]} 38... Bf6 {[%clk
0:00:16.6]} 39. Ra2 {[%clk 0:00:51.5]} 39... Kg7 {[%clk 0:00:16.2]} 40. Ra8
{[%clk 0:00:48.7]} 40... h5 {[%clk 0:00:14.6]} 41. e4 {[%clk 0:00:48.4]} 41...
e6 {[%clk 0:00:12.3]} 42. Raa7 {[%clk 0:00:47.5]} 42... Bd4+ {[%clk 0:00:10.9]}
43. Kf3 {[%clk 0:00:47.5]} 43... Kg8 {[%clk 0:00:09.6]} 44. Rxf7 {[%clk
0:00:47.2]} 44... Rb6 {[%clk 0:00:10]} 45. Rfb7 {[%clk 0:00:46.6]} 45... Rxb7
{[%clk 0:00:09]} 46. Rxb7 {[%clk 0:00:47.5]} 46... Bc3 {[%clk 0:00:07.3]} 47.
Rd7 {[%clk 0:00:47.8]} 1-0